[Event "BL 2016-17"]
[Site "Germany"]
[Date "2017.02.18"]
[Round "7.5"]
[White "Goloshchapov, Alexander"]
[Black "Naiditsch, Arkadij"]
[Result "1/2-1/2"]
[ECO "E68"]
[WhiteElo "2585"]
[BlackElo "2702"]
[Annotator "RC RC RC RC"]
[PlyCount "89"]
[EventDate "2017.??.??"]
[EventType "team-tourn"]
[EventCountry "GER"]
[SourceTitle "playchess.com"]
[Source "ChessBase"]
[SourceQuality "1"]
[WhiteTeam "SG Trier"]
[BlackTeam "Baden-Baden"]
[TimeControl "40/6000+30:3000+30"]

1. d4 {[%emt 0:00:30]} Nf6 {[%emt 0:01:00]} 2. c4 {[%emt 0:00:00]} g6 {[%emt 0:00:00]} 3. Nf3 {[%emt 0:00:00]} Bg7 {[%emt 0:00:00]} 4. g3 {[%emt 0:00:00]} O-O {[%emt 0:00:30]} 5. Bg2 {[%emt 0:00:00]} d6 {[%emt 0:00:30]} 6. Nc3 {[%emt 0:00:30]} Nbd7 {[%emt 0:00:00]} 7. O-O {[%emt 0:00:30]} e5 {[%emt 0:00:00]} 8. e4 {[%emt 0:00:00]} Re8 {[%emt 0:00:00]} 9. h3 {[%emt 0:06:00]} exd4 {[%emt 0:06:00]} 10. Nxd4 {[%emt 0:00:00]} Nc5 {[%emt 0:00:00]} 11. Re1 {[%emt 0:00:00]} Bd7 {[%emt 0:00:00]} 12. Bf4 {[%emt 0:18:30]} h6 {[%emt 0:01:30]} 13. g4 {[%emt 0:12:30]} Nh7 {[%emt 0:03:30]} 14. Be3 {[%emt 0:04:30]} Ne6 {[%emt 0:15:30]} 15. Qd2 {[%emt 0:12:30]} Nxd4 {[%emt 0:07:30]} 16. Bxd4 {[%emt 0:00:30]} Bxd4 {[%emt 0:13:30]} 17. Qxd4 {[%emt 0:00:30]} Qf6 {[%emt 0:01:30]} 18. Qxf6 {[%emt 0:14:30]} Nxf6 {[%emt 0:00:30]} 19. c5 {[%emt 0:00:30]} dxc5 {[%emt 0:13:30]} 20. e5 {[%emt 0:00:30]} Nh7 {[%emt 0:00:30]} 21. Rad1 {[%emt 0:01:30]} Bc6 {[%emt 0:01:30]} 22. Bxc6 {[%emt 0:07:30]} bxc6 {[%emt 0:00:30]} 23. Ne4 {[%emt 0:00:30]} Rab8 {[%emt 0:08:30]} 24. b3 {[%emt 0:08:30]} Rb5 {[%emt 0:00:30]} 25. f4 {[%emt 0:01:30]} Rb4 {[%emt 0:22:07]} 26. Rd7 {[%emt 0:02:23]} c4 {[%emt 0:03:36]} 27. bxc4 {[%emt 0:01:43]} Rxc4 {[%emt 0:00:28]} 28. Re2 {[%emt 0:05:38]} g5 {[%emt 0:03:58]} 29. Rxc7 {[%emt 0:03:52]} gxf4 {[%emt 0:00:31]} 30. Nd6 {[%emt 0:01:01]} f3 {[%emt 0:04:31]} 31. Nxc4 {[%emt 0:03:30]} fxe2 {[%emt 0:00:08]} 32. Kf2 {[%emt 0:00:06]} Ng5 {[%emt 0:01:58]} 33. Kxe2 {[%emt 0:00:11]} Nxh3 {[%emt 0:00:11]} 34. Rxa7 {[%emt 0:01:19]} Rb8 {[%emt 0:00:35]} 35. Ke3 {[%emt 0:02:16]} Ng5 {[%emt 0:01:25]} 36. Rc7 {[%emt 0:01:38]} Ra8 {[%emt 0:00:42]} 37. a3 {[%emt 0:01:01]} Ra6 {[%emt 0:00:22]} 38. Kd3 {[%emt 0:01:15]} Ne6 {[%emt 0:00:26]} 39. Rc8+ {[%emt 0:00:42]} Kg7 {[%emt 0:00:03]} 40. Kc3 {[%emt 0:00:15]} c5 {[%emt 0:01:59]} 41. Kb3 {[%emt 0:16:10]} Nd4+ {[%emt 0:03:30]} 42. Kc3 {[%emt 0:00:30]} Ne6 {[%emt 0:00:30]} 43. Kb3 {[%emt 0:02:30]} Nd4+ {[%emt 0:03:30]} 44. Kc3 {[%emt 0:01:30]} Ne6 {[%emt 0:00:30]} 45. Kb3 {[%emt 0:00:30]} 1/2-1/2

[Event "BL 2016-17"]
[Site "Germany"]
[Date "2017.02.18"]
[Round "7.5"]
[White "Braun, Christian"]
[Black "Commercon, Simon"]
[Result "1-0"]
[ECO "C55"]
[WhiteElo "2354"]
[BlackElo "2290"]
[Annotator "ChessBase"]
[PlyCount "175"]
[EventDate "2017.??.??"]
[EventType "team-tourn"]
[EventCountry "GER"]
[SourceTitle "playchess.com"]
[Source "ChessBase"]
[SourceQuality "1"]
[WhiteTeam "Aufwärts Aachen"]
[BlackTeam "Speyer-Schwegenheim"]
[TimeControl "40/6000+30:3000+30"]

1. e4 {[%emt 0:00:30]} e5 {[%emt 0:01:00]} 2. Nf3 {[%emt 0:00:00]} Nc6 {[%emt 0:00:00]} 3. Bc4 {[%emt 0:00:00]} Nf6 {[%emt 0:00:00]} 4. d3 {[%emt 0:00:00]} Be7 {[%emt 0:01:30]} 5. O-O {[%emt 0:00:00]} O-O {[%emt 0:00:30]} 6. Nc3 {[%emt 0:00:30]} d6 {[%emt 0:01:30]} 7. a3 {[%emt 0:00:30]} Nd7 {[%emt 0:14:30]} 8. Ba2 {[%emt 0:02:30]} Nc5 {[%emt 0:00:30]} 9. Nd5 {[%emt 0:00:30]} Bg4 {[%emt 0:06:30]} 10. c3 {[%emt 0:02:30]} Ne6 {[%emt 0:00:30]} 11. Ne3 {[%emt 0:00:30]} Bh5 {[%emt 0:03:30]} 12. Nf5 {[%emt 0:03:30]} Bf6 {[%emt 0:10:30]} 13. Ng3 {[%emt 0:02:30]} Bg6 {[%emt 0:03:30]} 14. Be3 {[%emt 0:00:30]} Ng5 {[%emt 0:20:30]} 15. Nxg5 {[%emt 0:14:30]} Bxg5 {[%emt 0:00:00]} 16. Qg4 {[%emt 0:00:30]} Bf6 {[%emt 0:21:00]} 17. Nh5 {[%emt 0:07:30]} Bxh5 {[%emt 0:02:30]} 18. Qxh5 {[%emt 0:00:30]} Ne7 {[%emt 0:01:30]} 19. f4 {[%emt 0:01:30]} g6 {[%emt 0:02:53]} 20. Qh3 {[%emt 0:00:30]} d5 {[%emt 0:04:17]} 21. fxe5 {[%emt 0:02:30]} Bxe5 {[%emt 0:00:23]} 22. d4 {[%emt 0:01:30]} Bg7 {[%emt 0:00:21]} 23. Bg5 {[%emt 0:00:30]} dxe4 {[%emt 0:04:21]} 24. Rxf7 {[%emt 0:01:30]} Rxf7 {[%emt 0:00:32]} 25. Qe6 {[%emt 0:00:30]} Qe8 {[%emt 0:07:31]} 26. Bxe7 {[%emt 0:00:30]} Bf8 {[%emt 0:00:55]} 27. Rf1 {[%emt 0:10:30]} Qxe7 {[%emt 0:00:06]} 28. Qd5 {[%emt 0:04:30]} Rd8 {[%emt 0:02:55]} 29. Qxb7 {[%emt 0:00:30]} Qg5 {[%emt 0:00:39]} 30. Bxf7+ {[%emt 0:04:30]} Kh8 {[%emt 0:00:23]} 31. Qxe4 {[%emt 0:00:30]} Bd6 {[%emt 0:00:31]} 32. c4 {[%emt 0:03:30]} c5 {[%emt 0:00:34]} 33. Bd5 {[%emt 0:03:30]} cxd4 {[%emt 0:00:16]} 34. Qxd4+ {[%emt 0:00:30]} Be5 {[%emt 0:00:08]} 35. Qf2 {[%emt 0:02:30]} Qh6 {[%emt 0:00:06]} 36. g3 {[%emt 0:00:30]} Qg7 {[%emt 0:00:03]} 37. Qf7 {[%emt 0:00:30]} Bxb2 {[%emt 0:01:08]} 38. Qxg7+ {[%emt 0:00:30]} Kxg7 {[%emt 0:00:12]} 39. Rf7+ {[%emt 0:00:30]} Kh6 {[%emt 0:00:30]} 40. Kg2 {[%emt 0:00:30]} Bxa3 {[%emt 0:50:32]} 41. Rxa7 {[%emt 0:50:30]} Bc5 {[%emt 0:01:18]} 42. Rc7 {[%emt 0:00:00]} Bd6 {[%emt 0:00:50]} 43. Rf7 {[%emt 0:00:00]} Rb8 {[%emt 0:00:00]} 44. Bb7 {[%emt 0:00:00]} Re8 {[%emt 0:00:00]} 45. Rd7 {[%emt 0:00:00]} Bb4 {[%emt 0:00:00]} 46. Bd5 {[%emt 0:00:00]} Re7 {[%emt 0:00:00]} 47. Rd8 {[%emt 0:00:00]} Kg5 {[%emt 0:00:00]} 48. Kf3 {[%emt 0:00:00]} h5 {[%emt 0:00:00]} 49. h4+ {[%emt 0:00:00]} Kf6 {[%emt 0:00:00]} 50. Be4 {[%emt 0:00:00]} g5 {[%emt 0:00:00]} 51. hxg5+ {[%emt 0:00:00]} Kxg5 {[%emt 0:00:00]} 52. c5 {[%emt 0:00:00]} Kf6 {[%emt 0:00:00]} 53. c6 {[%emt 0:00:00]} Ba5 {[%emt 0:00:00]} 54. Rd5 {[%emt 0:00:00]} Re5 {[%emt 0:00:00]} 55. Rd6+ {[%emt 0:00:00]} Re6 {[%emt 0:00:00]} 56. Rd3 {[%emt 0:00:00]} Re5 {[%emt 0:00:00]} 57. Bd5 {[%emt 0:00:00]} Bc7 {[%emt 0:00:00]} 58. Kg2 {[%emt 0:00:00]} Rg5 {[%emt 0:00:00]} 59. Kh3 {[%emt 0:00:00]} Bxg3 {[%emt 0:00:00]} 60. Rf3+ {[%emt 0:00:00]} Ke7 {[%emt 0:03:09]} 61. Rf7+ {[%emt 0:00:00]} Ke8 {[%emt 0:01:39]} 62. Rd7 {[%emt 0:00:00]} Bf4 {[%emt 0:01:40]} 63. Bf7+ {[%emt 0:00:00]} Kf8 {[%emt 0:00:06]} 64. Be6 {[%emt 0:00:00]} Rg7 {[%emt 0:00:17]} 65. Rd5 {[%emt 0:00:00]} Ke7 {[%emt 0:00:54]} 66. Bf5 {[%emt 0:00:00]} Kf6 {[%emt 0:00:23]} 67. Bd7 {[%emt 0:00:00]} Rg5 {[%emt 0:00:36]} 68. Rd3 {[%emt 0:00:00]} Rc5 {[%emt 0:00:43]} 69. Kh4 {[%emt 0:00:00]} Ke5 {[%emt 0:00:32]} 70. Rd1 {[%emt 0:00:00]} Ke4 {[%emt 0:00:33]} 71. Bh3 {[%emt 0:00:00]} Kf3 {[%emt 0:00:47]} 72. Rf1+ {[%emt 0:00:00]} Ke3 {[%emt 0:00:25]} 73. Bg2 {[%emt 0:00:00]} Bc7 {[%emt 0:00:36]} 74. Rf7 {[%emt 0:00:00]} Bd8+ {[%emt 0:00:33]} 75. Kh3 {[%emt 0:00:00]} Ba5 {[%emt 0:00:18]} 76. Rd7 {[%emt 0:00:00]} Kf4 {[%emt 0:00:25]} 77. Rd3 {[%emt 0:00:00]} Ke5 {[%emt 0:00:33]} 78. Kh4 {[%emt 0:00:00]} Kf6 {[%emt 0:00:34]} 79. Rd1 {[%emt 0:00:00]} Ke6 {[%emt 0:00:41]} 80. Bf3 {[%emt 0:00:00]} Kf6 {[%emt 0:00:27]} 81. Rd6+ {[%emt 0:00:00]} Ke7 {[%emt 0:01:00]} 82. Rd7+ {[%emt 0:00:00]} Kf6 {[%emt 0:00:16]} 83. Rh7 {[%emt 0:00:00]} Be1+ {[%emt 0:00:13]} 84. Kh3 {[%emt 0:00:00]} Rc3 {[%emt 0:00:53]} 85. Kg2 {[%emt 0:00:00]} h4 {[%emt 0:00:08]} 86. c7 {[%emt 0:00:30]} Bg3 {[%emt 0:00:30]} 87. Bc6 {[%emt 0:00:00]} h3+ {[%emt 0:01:21]} 88. Rxh3 {[%emt 0:00:00]} 1-0